bitfinex/quotes_ETHUSD_20251125
["timestamp","ask_amount","ask_price","bid_price","bid_amount"]
[1764090717148,0.4873,2940.7,2939.8,0.90803429]
[1764090717354,0.4873,2940.7,2939.9,0.90803429]
[1764090717563,0.4873,2940.7,2939.7,1.21071239]
[1764090717564,3.88794373,2940.7,2939.8,3.40159194]
[1764090717767,3.88794373,2940.7,2939.8,7.71121817]
[1764090717965,0.4873,2940.6,2939.8,3.40159194]
[1764090718269,0.4873,2940.6,2939.8,4.30962623]
[1764090718600,0.4873,2940.6,2939.8,7.71121817]
[1764090718889,0.4873,2940.6,2939.9,0.90803429]
[1764090719096,0.6464,2940.9,2939.9,0.90803429]
[1764090719248,4.04677541,2940.9,2940.2,0.90803429]
[1764090719448,0.4654,2940.8,2940.2,0.90803429]
[1764090719689,3.86584697,2940.8,2940.2,3.40107565]
[1764090719987,0.4654,2940.8,2940.1,7.71047451]
[1764090720284,0.181,2940.9,2940.1,7.71047451]
[1764090720495,0.181,2941.0,2940.3,0.90803429]
[1764090720802,3.40021974,2942.8,2940.9,0.90803429]
[1764090720803,0.4654,2941.9,2940.9,0.90803429]
[1764090720969,0.002,2942.8,2941.1,0.89849411]
[1764090721168,0.4654,2942.3,2941.3,0.89849411]
[1764090721478,0.4654,2942.3,2941.3,0.89852765]
[1764090721678,0.4654,2942.3,2941.5,3.39962604]
[1764090721880,0.002,2942.8,2941.4,0.89852765]
[1764090721881,0.4654,2941.9,2941.4,4.29823037]
[1764090722058,0.4654,2941.9,2941.3,4.29835279]
[1764090722262,0.4654,2941.9,2941.3,0.89852765]
[1764090723966,0.4654,2941.9,2941.3,4.29838094]
[1764090724181,0.181,2942.0,2941.3,7.69823814]
[1764090725000,0.181,2942.0,2941.4,0.89852765]
[1764090725185,0.6464,2942.0,2941.4,0.89852765]
[1764090725494,0.181,2942.0,2941.5,0.89852765]
[1764090725673,0.72559411,2942.6,2941.7,0.89852765]
[1764090725877,0.4654,2942.4,2941.7,6.7987898]
[1764090726076,0.4654,2942.4,2941.7,3.3993949]
[1764090726509,0.4654,2942.4,2941.7,6.7987898]
[1764090726799,0.4674,2942.8,2941.7,7.69731745]
[1764090726969,0.4674,2942.8,2941.9,0.89852765]
[1764090727176,1.19299411,2942.8,2941.9,0.89852765]
[1764090727367,0.002,2942.8,2941.9,0.89852765]
[1764090727704,0.002,2942.8,2942.1,0.89852765]
[1764090727875,3.86553316,2942.8,2942.1,0.89852765]
[1764090728197,3.86553316,2942.8,2942.0,3.61894689]
[1764090728511,0.4654,2942.7,2942.0,3.61894689]
[1764090729004,0.002,2942.8,2942.1,0.72559411]
[1764090729205,0.002,2942.8,2942.7,1.05252765]
[1764090729376,0.002,2942.8,2942.7,1.58471239]
[1764090729577,0.002,2942.8,2942.7,0.52506032]
[1764090729899,0.002,2942.8,2942.7,1.72170185]
[1764090730099,0.002,2942.8,2942.7,5.69299575]
[1764090730301,0.002,2942.8,2942.7,4.49783382]
[1764090730976,0.002,2942.8,2942.7,5.69299575]
[1764090731177,0.002,2942.8,2942.7,4.49783382]
[1764090731385,0.002,2942.8,2942.7,5.3924037]
[1764090731698,0.002,2942.8,2942.7,4.29280959]
[1764090731884,0.002,2942.8,2942.7,3.39823971]
[1764090732099,0.002,2942.8,2942.5,3.39842939]
[1764090732270,0.002,2942.8,2942.5,0.22]
[1764090732982,0.4674,2942.8,2942.2,3.39881721]
[1764090733182,0.4674,2942.8,2942.1,0.22]
[1764090734108,0.4674,2942.8,2941.6,3.39947212]
[1764090734109,0.4674,2942.8,2942.2,3.39881721]
[1764090734282,0.4674,2942.8,2942.2,6.79763442]
[1764090734473,0.002,2942.8,2942.2,6.79763442]
[1764090735003,0.4674,2942.8,2942.1,0.22]
[1764090735208,0.002,2942.8,2942.1,0.22]
[1764090735408,0.003,2942.6,2942.1,0.22]
[1764090735774,0.003,2942.6,2942.1,0.371]
[1764090735977,0.003,2942.6,2942.2,0.151]
[1764090736178,0.003,2942.6,2942.3,6.79740338]
[1764090736830,0.4684,2942.6,2942.3,3.61870169]
[1764090737109,0.4684,2942.6,2942.3,3.39870169]
[1764090737413,0.4684,2942.6,2942.1,0.22]
[1764090738184,0.4684,2942.6,2942.2,6.79763442]
[1764090738185,0.003,2942.6,2942.2,6.79763442]
[1764090738507,0.003,2942.6,2942.2,10.19645163]
[1764090738717,0.003,2942.6,2942.2,6.79763442]
[1764090739009,0.003,2942.6,2942.5,0.151]
[1764090739206,0.003,2942.6,2942.5,0.371]
[1764090739410,0.003,2942.6,2942.5,0.5559847]
[1764090739615,0.003,2942.6,2942.5,0.522]
[1764090739910,0.003,2942.6,2942.5,0.371]
[1764090740082,0.003,2942.6,2942.5,3.76947068]
[1764090740406,0.003,2942.6,2942.5,4.49506479]
[1764090740909,0.005,2942.6,2942.5,4.49506479]
[1764090741683,0.005,2942.6,2942.5,3.61847068]
[1764090741879,0.005,2942.6,2942.5,3.39847068]
[1764090742180,0.005,2942.6,2942.5,3.61847068]
[1764090743888,0.005,2942.6,2942.5,0.22]
[1764090744431,0.005,2942.6,2942.5,3.61847068]
[1764090745112,0.005,2942.6,2942.5,3.76947068]
[1764090745611,0.005,2942.6,2942.5,3.61847068]
[1764090747386,0.005,2942.6,2942.5,4.66499771]
[1764090747687,0.005,2942.6,2942.5,5.11390206]
[1764090748315,0.005,2942.6,2942.5,3.92047068]
[1764090748702,0.005,2942.6,2942.5,4.81944578]
[1764090748911,0.005,2942.6,2942.5,4.97044578]
[1764090749094,0.002,2942.8,2942.5,8.36891646]
[1764090749412,0.002,2942.8,2942.7,0.151]
[1764090749586,0.002,2942.8,2942.7,1.5029751]
[1764090749780,0.002,2942.8,2942.5,8.80708843]
[1764090749781,0.002,2942.8,2942.6,1.79014707]
[1764090750022,0.002,2942.8,2942.7,0.22]
[1764090750517,0.002,2942.8,2942.7,3.61823971]
[1764090750821,0.002,2942.8,2942.7,4.31013176]
[1764090751034,0.963,2942.8,2942.7,4.30035747]
[1764090751310,0.963,2942.8,2942.7,3.39823971]
[1764090751610,0.963,2942.8,2942.7,4.30035747]
[1764090751813,0.963,2942.8,2942.5,1.20226879]
[1764090751814,0.963,2942.8,2942.5,0.90211776]
[1764090752059,0.4847,2942.6,2942.5,3.39846859]
[1764090752184,0.4847,2942.6,2942.5,4.30058635]
[1764090752390,0.961,2942.6,2942.5,4.30058635]
[1764090753028,0.961,2942.6,2942.5,3.39846859]
[1764090753185,0.002,2942.8,2942.5,6.79693927]
[1764090753391,0.002,2942.8,2942.6,0.90338979]
[1764090753590,0.4763,2942.7,2942.5,4.30185838]
[1764090753785,0.4763,2942.7,2942.5,3.39846859]
[1764090753786,0.4847,2942.6,2942.5,3.39846859]
[1764090754004,0.002,2942.8,2942.5,6.79693927]
[1764090754330,0.002,2942.8,2942.7,0.151]
[1764090754529,0.002,2942.8,2942.7,4.49483382]
[1764090754689,0.002,2943.1,2942.7,11.44231324]
[1764090754889,0.002,2943.1,2943.0,1.95751163]
[1764090755333,0.002,2943.1,2943.0,0.151]
[1764090755533,0.002,2943.1,2943.0,0.371]
[1764090756128,0.002,2943.4,2943.0,0.522]
[1764090756325,0.002,2943.4,2943.3,0.151]
[1764090756614,0.002,2943.4,2943.3,3.54854697]
[1764090757386,0.002,2943.4,2943.3,3.39754697]
[1764090757821,0.002,2943.4,2943.3,5.42436174]
[1764090758189,0.002,2943.4,2943.3,5.20536174]
[1764090758394,0.002,2943.4,2943.3,3.61654697]
[1764090758594,0.963,2943.4,2943.3,4.60250379]
[1764090758894,0.963,2943.4,2943.3,3.39754697]
[1764090759119,0.963,2943.4,2943.3,0.9037475]
[1764090759120,0.002,2943.4,2943.3,0.9037475]
[1764090759421,0.002,2943.4,2943.2,8.21924149]
[1764090760004,0.002,2943.4,2943.3,1.20491673]
[1764090760718,0.002,2943.4,2943.3,3.54854697]
[1764090761921,0.963,2943.4,2942.9,0.72559411]
[1764090762114,0.961,2943.3,2943.0,8.82237228]
[1764090762431,0.002,2943.4,2943.2,1.20523406]
[1764090762723,0.002,2943.4,2943.3,3.39754697]
[1764090763897,0.4867,2943.4,2943.3,3.61654697]
[1764090764097,0.002,2943.4,2943.3,3.61654697]
[1764090764520,0.002,2943.4,2943.3,3.39754697]
[1764090764723,0.4867,2943.4,2943.3,3.61654697]
[1764090765105,0.002,2943.4,2943.3,3.61654697]
[1764090767724,0.002,2943.4,2943.3,3.39754697]
[1764090767898,0.4867,2943.4,2943.3,3.61654697]
[1764090768100,0.002,2943.4,2943.3,3.61654697]
[1764090768418,0.002,2943.4,2943.3,3.76754697]
[1764090768816,0.002,2943.4,2943.3,9.42547856]
[1764090769009,0.002,2943.4,2943.3,9.3915031]
[1764090769213,0.002,2943.4,2943.3,6.66100384]
[1764090769417,0.002,2943.4,2943.3,4.49314108]
[1764090770003,0.002,2943.4,2943.3,4.64414108]
[1764090770307,0.002,2943.4,2943.3,3.39754697]
[1764090770636,0.002,2943.4,2943.2,4.60283939]
[1764090770637,0.9423,2943.4,2943.2,4.60283939]
[1764090770846,0.9403,2943.3,2943.2,4.60289051]
[1764090771042,0.002,2943.4,2943.2,4.60289051]
[1764090771043,0.002,2943.4,2943.2,8.00055291]
[1764090771416,0.002,2943.4,2943.3,0.90412865]
[1764090771922,0.7215,2943.4,2943.2,1.20522811]
[1764090772149,0.0025,2943.3,2942.6,1.42422811]
[1764090772355,0.0025,2943.3,2942.7,6.7964047]
[1764090772356,0.4606,2943.1,2942.7,6.7964047]
[1764090772849,0.002,2943.4,2942.9,6.79601752]
[1764090773151,0.002,2943.4,2943.0,1.42422811]
[1764090773355,0.002,2943.4,2943.0,0.219]
[1764090775438,0.002,2943.4,2943.1,6.7955557]
[1764090775810,0.002,2943.4,2943.3,0.4737]
[1764090776016,0.002,2943.4,2943.3,1.42422811]
[1764090776353,0.002,2943.4,2943.3,1.4253593]
[1764090776934,0.7193,2943.4,2943.3,1.2063593]
[1764090777140,0.7193,2943.4,2943.1,4.82313715]
[1764090777324,0.0047,2943.2,2943.1,3.61677785]
[1764090777950,0.002,2943.4,2943.1,7.0145557]
[1764090778150,0.477,2943.4,2943.1,7.0145557]
[1764090779033,0.477,2943.4,2943.0,0.001]
[1764090779034,0.2446,2943.2,2943.0,0.001]
[1764090779232,0.477,2943.4,2943.0,0.001]
[1764090779233,0.0024,2943.1,2943.0,0.001]
[1764090779845,0.4815,2943.1,2943.0,0.001]
[1764090780445,0.002,2943.4,2943.0,0.001]
[1764090781254,0.002,2943.4,2943.3,0.4908]
[1764090781556,0.002,2943.4,2943.3,11.12625308]
[1764090781754,0.002,2943.4,2943.3,9.31870899]
[1764090782830,0.002,2943.4,2943.3,4.57134697]
[1764090783257,0.002,2943.4,2943.3,4.35234697]
[1764090783458,0.002,2943.4,2943.3,4.57134697]
[1764090784127,0.1937,2944.6,2943.3,4.57134697]
[1764090784128,0.003,2944.7,2943.4,0.405504]
[1764090784349,0.003,2944.7,2944.6,0.659]
[1764090784552,0.003,2944.7,2944.6,2.08352587]
[1764090784739,0.003,2944.7,2944.6,2.54752587]
[1764090785229,0.003,2944.7,2944.6,1.342]
[1764090785653,0.003,2944.7,2944.6,4.738047]
[1764090787149,0.003,2944.7,2944.6,3.886847]
[1764090787335,0.003,2944.7,2944.6,4.105847]
[1764090787739,0.003,2944.7,2944.6,4.83144111]
[1764090787940,0.003,2944.7,2944.6,6.50096698]
[1764090788234,0.1937,2945.8,2944.6,15.48358211]
[1764090788429,0.1937,2945.8,2944.8,1.20081487]
[1764090788635,0.1937,2945.8,2944.7,1.66481487]
[1764090789260,0.1937,2945.8,2944.8,0.464]
[1764090789436,0.03394,2946.1,2945.4,0.688]
[1764090789635,0.03394,2946.1,2945.4,0.907]
[1764090789869,0.6491,2945.9,2945.4,3.3951246]
[1764090790039,0.265,2945.5,2945.4,3.6141246]
[1764090790375,0.265,2945.5,2945.4,0.219]
[1764090790540,0.003,2945.5,2945.4,0.219]
[1764090791393,0.265,2945.5,2945.0,3.3955295]
[1764090791673,0.0048,2945.4,2945.1,0.219]
[1764090791877,0.0048,2945.4,2944.8,3.3957258]
[1764090791878,0.4839,2945.4,2944.8,3.3957258]
[1764090792078,0.4839,2945.4,2944.9,0.219]
[1764090792440,0.003,2945.5,2945.0,0.219]
[1764090793283,0.003,2945.5,2944.8,3.3957258]
[1764090793284,0.262,2945.1,2944.8,3.3957258]
[1764090793488,0.262,2945.1,2944.9,0.219]
[1764090793840,0.003,2945.5,2944.9,0.219]
[1764090794146,0.003,2945.5,2944.7,3.39583994]
[1764090794147,0.262,2945.0,2944.3,0.66316465]
[1764090794485,0.0026,2944.9,2944.4,0.219]
[1764090794685,0.0026,2944.9,2944.3,6.79278606]
[1764090794849,0.1963,2944.9,2944.5,0.219]
[1764090795046,0.4791,2944.8,2944.5,0.219]
[1764090795342,0.4791,2944.8,2943.8,5.94817689]
[1764090795343,0.2594,2944.6,2943.8,5.94817689]
[1764090795556,0.2594,2944.6,2943.9,6.79370902]
[1764090795759,0.2594,2944.6,2943.9,7.01270902]
[1764090795978,0.4791,2945.3,2944.5,0.688]
[1764090796161,0.4791,2945.3,2944.6,0.219]
[1764090796439,0.002,2945.1,2944.6,0.219]
[1764090797039,0.4791,2945.0,2944.6,0.219]
[1764090797480,0.1937,2944.9,2944.6,0.219]
[1764090797948,0.1937,2944.9,2944.7,3.39593167]
[1764090798472,0.4569,2944.8,2944.7,3.39593167]
[1764090798684,0.4569,2944.8,2944.7,3.61493167]
[1764090798842,0.4569,2944.8,2944.7,3.39593167]
[1764090799151,0.1937,2944.9,2944.7,3.39593167]
[1764090799666,0.1937,2944.9,2944.6,3.39600336]
[1764090799667,0.4551,2944.8,2944.6,3.39600336]
[1764090799870,0.0029,2944.7,2943.7,1.20081487]
[1764090800047,0.4506,2944.6,2943.7,3.6160853]
[1764090800246,0.4506,2944.6,2943.8,0.4995]
[1764090800446,0.1937,2944.9,2943.8,0.4995]
[1764090800759,0.665,2944.9,2943.8,0.4995]
[1764090801352,4.06080119,2944.9,2943.8,0.4995]
[1764090801553,0.665,2944.9,2943.8,0.4995]
[1764090801983,0.002,2945.1,2943.9,22.13713857]
[1764090802283,0.002,2945.1,2944.4,1.92640898]
[1764090802583,0.002,2945.1,2944.5,0.219]
[1764090802894,0.002,2945.1,2944.5,0.9037]
[1764090803256,0.002,2945.1,2944.6,0.7185]
[1764090803456,0.002,2945.1,2944.6,0.219]
[1764090803879,0.002,2945.1,2944.7,0.219]
[1764090804048,0.002,2945.1,2944.8,6.7916327]
[1764090804247,0.002,2945.1,2944.8,7.2911327]
[1764090804681,0.002,2945.1,2944.8,6.7916327]
[1764090804879,0.002,2945.1,2944.9,0.219]
[1764090805285,0.002,2945.1,2944.8,6.7916327]
[1764090805584,0.002,2945.1,2944.5,3.58129753]
[1764090805585,0.1913,2944.9,2944.4,3.39627767]
[1764090805753,0.1913,2944.9,2944.3,0.219]
[1764090805754,0.0074,2944.5,2944.3,0.219]
[1764090805960,0.1884,2944.9,2944.3,0.219]
[1764090806153,0.6597,2944.9,2944.3,3.61535798]
[1764090806566,0.4529,2944.4,2944.3,3.61535798]
[1764090806763,0.4529,2944.4,2944.3,0.219]
[1764090807682,0.4513,2944.4,2944.3,0.219]
[1764090807885,0.2948,2944.8,2944.3,0.219]
[1764090808263,0.1884,2944.9,2944.4,6.79255534]
[1764090809383,0.002,2945.1,2944.4,6.79255534]
[1764090809778,0.4733,2945.1,2944.4,6.79255534]
[1764090810161,3.86877473,2945.1,2944.4,3.39627767]
[1764090810366,7.26424946,2945.1,2944.2,3.39650838]
[1764090810579,7.26424946,2945.1,2944.4,0.405504]
[1764090810580,0.002,2945.1,2944.4,0.405504]
[1764090810799,0.003,2945.5,2945.1,0.405504]
[1764090810983,0.003,2945.5,2945.1,1.20081487]
[1764090811299,0.003,2945.5,2945.0,1.20081487]
[1764090811468,0.003,2945.5,2945.2,0.219]
[1764090812190,0.003,2945.5,2945.1,6.79094088]
[1764090812396,0.003,2945.5,2945.3,0.219]
[1764090813397,0.003,2945.5,2945.1,6.79094088]
[1764090813586,0.003,2945.5,2945.2,0.219]
[1764090814391,0.003,2945.5,2945.3,3.61423987]
[1764090814567,0.003,2945.5,2945.3,7.00947974]
[1764090815091,0.003,2945.5,2945.3,3.39523987]
[1764090815393,0.005,2945.5,2945.4,0.219]
[1764090816613,0.005,2945.5,2945.4,3.6141246]
[1764090817676,0.2694,2945.5,2945.4,3.6141246]
[1764090818193,0.005,2945.5,2945.4,3.6141246]
[1764090819974,0.2694,2945.5,2945.4,3.6141246]
[1764090820601,0.005,2945.5,2945.4,3.6141246]
[1764090821406,0.005,2945.5,2945.4,4.61917584]
[1764090821615,0.005,2945.5,2945.4,6.19154347]
[1764090821902,0.03394,2946.1,2945.4,15.90169651]
[1764090822113,0.03394,2946.1,2945.6,1.20209962]
[1764090822287,0.03394,2946.1,2946.0,0.4716]
[1764090822489,0.03394,2946.1,2946.0,1.89269962]
[1764090822792,0.03394,2946.1,2946.0,5.78663274]
[1764090823098,0.03394,2946.1,2946.0,4.58453312]
[1764090823531,0.03394,2946.1,2946.0,3.61343312]
[1764090823874,0.4713,2946.7,2946.0,3.61343312]
[1764090823875,0.4713,2947.9,2946.1,1.76309811]
[1764090824075,0.4713,2947.9,2946.7,1.9249805]
[1764090824271,0.1884,2948.0,2946.8,0.219]
[1764090824504,0.6597,2948.0,2946.8,0.7185]
[1764090824704,0.6597,2948.0,2946.9,10.18018935]
[1764090824912,3.58054251,2948.0,2946.9,6.7867929]
[1764090825110,0.4743,2947.6,2947.0,0.219]
[1764090825694,0.4743,2947.6,2947.1,0.219]
[1764090825899,0.4743,2947.6,2946.5,3.39382259]
[1764090825900,0.2672,2947.0,2946.4,6.7879446]
[1764090826103,0.4743,2947.6,2946.5,0.219]
[1764090826273,0.4743,2947.6,2946.4,6.7879446]
[1764090826274,0.4743,2947.6,2946.7,0.405504]
[1764090826478,0.4743,2947.6,2946.8,0.219]
[1764090826886,3.39270568,2947.5,2946.8,3.61246247]
[1764090827326,0.4713,2947.4,2946.8,3.61246247]
[1764090828243,0.4713,2947.4,2946.8,7.00597407]
[1764090828631,0.003,2947.6,2946.8,10.39948567]
[1764090828824,0.003,2947.6,2946.8,6.78697407]
[1764090828825,0.4743,2947.6,2946.8,6.78697407]
[1764090829018,0.4743,2947.6,2946.9,0.219]
[1764090829431,0.003,2947.6,2946.9,0.219]
[1764090830233,0.003,2947.6,2947.0,0.219]
[1764090830435,0.4604,2947.6,2947.0,0.219]
[1764090830614,0.003,2947.6,2947.0,0.219]
[1764090830813,0.003,2947.6,2947.0,0.6913]
[1764090831069,0.003,2947.6,2947.1,6.78633232]
[1764090831734,0.4604,2947.6,2947.1,6.78633232]
[1764090831925,0.281,2947.2,2946.9,3.39336003]
[1764090832154,0.281,2947.2,2946.5,3.39385711]
[1764090832450,0.281,2947.2,2946.6,0.72559411]
[1764090832745,0.281,2947.2,2946.5,3.39385711]
[1764090832746,0.7366,2947.2,2946.7,0.219]
[1764090833347,0.1893,2946.8,2946.6,3.39370899]
[1764090833534,0.1847,2946.8,2946.6,3.39370899]
[1764090833742,0.4556,2947.1,2946.7,0.219]
[1764090834654,0.2864,2946.8,2946.6,3.39370899]
[1764090834825,0.2864,2946.8,2946.7,0.219]
[1764090835027,0.2864,2946.8,2946.7,3.61262676]
[1764090835818,0.1847,2946.9,2946.7,7.00625352]
[1764090836652,0.005,2947.6,2946.8,0.4754]
[1764090836824,0.4624,2947.6,2946.8,0.4754]
[1764090837018,0.005,2947.6,2947.0,6.7865626]
[1764090837223,0.005,2947.6,2947.1,0.219]
[1764090838056,0.2847,2947.2,2946.5,3.39374383]
[1764090838354,0.005,2947.6,2946.6,0.219]
[1764090838651,0.4574,2947.5,2946.7,0.219]
[1764090839239,0.4574,2947.5,2946.8,6.7870232]
[1764090839954,0.4574,2947.5,2946.4,4.76463272]
[1764090839955,0.4574,2947.5,2946.9,0.219]
[1764090840148,3.85010878,2947.5,2946.9,0.219]
[1764090840344,0.4574,2947.5,2947.0,0.219]
[1764090840548,0.005,2947.6,2947.0,0.219]
[1764090841458,0.005,2947.6,2947.1,6.78633232]
[1764090841660,0.005,2947.6,2947.2,0.219]
[1764090841858,0.4886,2947.6,2947.2,0.219]
[1764090842059,3.88123954,2947.6,2946.7,6.78725352]
[1764090842366,3.88123954,2947.6,2946.8,0.218]
[1764090842367,3.8811918,2947.6,2946.8,0.218]
[1764090842669,0.72559411,2948.3,2946.8,0.218]
[1764090842670,0.0049135,2949.5,2949.2,0.4614]
[1764090842886,4.28364721,2950.7,2949.2,0.4614]
[1764090842887,0.6723,2951.2,2949.4,6.61293457]
[1764090843029,0.1887,2952.0,2950.9,0.1866]
[1764090843227,3.57509181,2953.0,2950.9,0.1866]
[1764090843228,0.6723,2952.4,2950.9,4.98495209]
[1764090843482,0.1887,2951.9,2951.0,0.405504]
[1764090843677,0.4836,2952.3,2951.1,0.71435546]
[1764090843841,0.4836,2952.3,2951.2,0.93535546]
[1764090844046,0.1887,2953.0,2951.4,0.405504]
[1764090844047,0.4836,2952.8,2951.4,0.405504]
[1764090844392,0.00607246,2953.6,2951.7,5.36071185]
[1764090844677,0.00607246,2953.6,2952.2,0.89656648]
[1764090844877,0.00607246,2953.6,2952.0,1.33642198]
[1764090844878,3.39181505,2953.6,2952.3,0.221]
[1764090845044,0.72559411,2953.5,2952.3,0.221]
[1764090845227,0.7046,2953.5,2952.1,3.38741912]
[1764090845432,0.00607246,2953.6,2952.2,0.72559411]
[1764090845757,0.00607246,2953.6,2952.3,0.221]
[1764090845758,0.48967246,2953.6,2952.3,0.221]
[1764090845983,0.00607246,2953.6,2952.3,0.221]
[1764090846275,0.00607246,2953.6,2953.1,0.1448]
[1764090846490,0.00607246,2953.6,2953.2,0.221]
[1764090846650,0.00607246,2953.6,2953.3,2.36071185]
[1764090846980,0.00607246,2953.6,2953.2,0.221]
[1764090846981,0.00607246,2953.6,2953.2,0.215]
[1764090847188,0.00607246,2953.6,2953.3,0.4752]
[1764090847336,0.00607246,2953.6,2953.2,0.4752]
[1764090848042,0.00607246,2953.6,2953.2,1.20079411]
[1764090848367,0.00607246,2953.6,2953.3,0.221]
[1764090848769,0.00607246,2953.6,2953.4,0.4752]
[1764090849329,0.00607246,2953.6,2953.3,0.221]
[1764090850568,0.00607246,2953.6,2953.1,0.1448]
[1764090850729,0.00607246,2953.6,2951.1,3.03357846]
[1764090850730,3.86941344,2953.5,2952.1,0.1448]
[1764090850930,3.86941344,2953.5,2952.2,0.221]
[1764090850931,0.4836,2953.5,2952.2,0.221]
[1764090851156,0.4836,2953.4,2952.2,0.221]
[1764090851368,0.4836,2953.4,2952.2,0.6962]
[1764090851569,0.4836,2953.4,2952.2,4.08350245]
[1764090851867,0.4836,2953.4,2951.9,0.1448]
[1764090851868,7.25548514,2953.4,2951.9,0.1448]
[1764090852233,0.00607246,2953.6,2951.9,0.1448]
[1764090852234,0.48967246,2953.6,2952.2,4.95520785]
[1764090852446,0.48967246,2953.6,2952.3,0.4752]
[1764090852654,0.48967246,2953.6,2952.2,4.95520785]
[1764090852655,3.87537714,2953.6,2952.0,0.72559411]
[1764090852976,0.4836,2953.5,2952.4,0.221]
[1764090853574,0.4836,2953.5,2952.3,0.221]
[1764090853575,7.2553147,2953.5,2952.3,0.221]
[1764090853736,10.64121596,2953.5,2951.9,0.1448]
[1764090853931,10.64121596,2953.5,2952.0,0.221]
[1764090853932,0.4836,2953.4,2952.0,0.221]
[1764090854133,0.4836,2953.4,2952.0,0.94659411]
[1764090854465,0.4836,2953.4,2952.0,0.221]
[1764090854666,1.20919411,2953.4,2952.1,0.221]
[1764090854976,1.20919411,2953.4,2951.1,3.86373411]
[1764090854977,0.1887,2952.2,2951.1,3.86373411]
[1764090855145,0.1887,2952.2,2951.2,0.221]
[1764090855466,4.0596198,2952.2,2951.0,3.60959]
[1764090855832,0.6723,2952.2,2951.0,3.60959]
[1764090856033,0.6723,2952.2,2951.1,0.72559411]
[1764090856265,0.1887,2952.2,2951.1,0.72559411]
[1764090856470,0.4836,2953.0,2951.2,0.4752]
[1764090856640,0.4836,2953.0,2951.2,0.57372661]
[1764090856641,0.1887,2952.8,2951.2,0.57372661]
[1764090856839,0.1887,2952.8,2951.2,0.4752]
[1764090857039,0.1887,2953.9,2952.7,0.1448]
[1764090857247,0.1887,2953.9,2952.9,6.7730028]
[1764090857467,0.4836,2954.4,2952.9,13.64453221]
[1764090857645,0.4836,2954.4,2953.5,0.1448]
[1764090857839,0.4097,2955.3,2953.5,0.550304]
[1764090857840,0.6723,2955.3,2953.5,0.550304]
[1764090858074,0.4836,2954.9,2953.6,0.4752]
[1764090858248,0.1887,2955.3,2953.6,0.6972]
[1764090858569,0.6723,2955.0,2953.6,0.6972]
[1764090858941,0.4836,2954.9,2953.6,0.6972]
[1764090859264,3.8678422,2954.9,2953.6,3.3856988]
[1764090859465,0.1887,2955.0,2953.7,0.4752]
[1764090860044,0.6723,2955.0,2953.7,0.4752]
[1764090860467,2.808022,2955.6,2953.7,0.4752]
[1764090860770,6.76658658,2955.7,2953.7,0.4752]
[1764090860967,0.72559411,2955.6,2953.7,0.4752]
[1764090861269,0.53097864,2955.8,2953.7,0.4752]
[1764090861438,0.72559411,2955.6,2953.8,10.15640868]
[1764090861776,7.29740537,2955.8,2953.8,10.37940868]
[1764090861777,0.72559411,2955.7,2953.8,10.37940868]
[1764090861948,0.72559411,2955.7,2953.9,0.4606]
[1764090862448,4.522274,2955.5,2953.8,6.77093912]
[1764090862640,0.72559411,2955.4,2953.5,0.6054]
[1764090862835,0.72559411,2955.4,2953.9,0.223]
[1764090863041,3.949264,2955.3,2953.9,0.223]
[1764090863340,3.949264,2955.3,2952.8,0.72559411]
[1764090863341,3.47811857,2954.0,2952.7,3.5315306]
[1764090863542,3.47804189,2954.0,2952.8,0.223]
[1764090863876,0.1772,2952.8,2951.7,0.4606]
[1764090864182,0.1772,2952.8,2951.6,0.223]
[1764090864481,0.396,2952.7,2951.6,0.223]
[1764090864896,0.72559411,2953.6,2952.6,0.1999]
[1764090864897,0.1772,2953.3,2952.6,0.1999]
[1764090865049,0.1772,2953.3,2952.3,0.223]
[1764090865237,0.1772,2953.3,2951.9,0.223]
[1764090865238,0.396,2953.2,2951.9,0.223]
[1764090865438,0.1772,2953.3,2952.0,10.62320161]
[1764090865641,0.1772,2953.3,2952.1,0.6605]
[1764090866077,0.396,2953.2,2952.1,0.1999]
[1764090866571,0.396,2953.2,2951.9,0.223]
[1764090866779,0.396,2953.2,2951.9,4.07124863]
[1764090866964,0.1772,2953.3,2951.9,10.84654589]
[1764090867274,3.78161167,2953.7,2951.9,10.84654589]
[1764090867275,0.1772,2953.6,2952.0,1.26337742]
[1764090867440,0.1772,2953.6,2952.2,6.77460876]
[1764090867639,0.1772,2953.6,2952.2,10.16191314]
[1764090867854,0.1772,2953.6,2952.3,0.70569471]
[1764090868050,0.1772,2953.6,2952.4,0.223]
[1764090868273,0.1772,2953.6,2952.5,0.70703176]
[1764090868479,0.1772,2953.6,2952.6,0.70703176]
[1764090868640,0.1772,2953.6,2952.4,0.6836]
[1764090868844,0.1772,2953.6,2952.5,0.70726981]
[1764090869044,0.1772,2953.6,2952.6,0.70726743]
[1764090869245,0.5732,2953.6,2952.7,0.70726743]
[1764090869452,0.5732,2953.6,2952.8,0.70726743]
[1764090869657,0.5732,2953.6,2952.9,0.70726743]
[1764090869856,3.95893244,2953.6,2953.0,0.70726743]
[1764090870062,0.1657,2955.4,2953.5,0.1999]
[1764090870283,0.1657,2955.4,2954.1,0.1999]
[1764090870612,0.396,2955.3,2954.2,0.70913186]
[1764090870757,0.396,2955.3,2953.6,0.6826]
[1764090870758,0.396,2955.3,2953.8,0.89656648]
[1764090870952,6.93302386,2955.4,2953.8,0.89656648]
[1764090870953,6.93302386,2955.4,2953.9,0.70848814]
[1764090871276,0.1657,2955.4,2954.5,0.89656648]